bitfinex-derivatives/quotes_SOLF0:USTF0_20250923
["timestamp","ask_amount","ask_price","bid_price","bid_amount"]
[1758622439532,3.34082089,218.64,218.62,6.72]
[1758622439829,7.6,218.65,218.62,6.72]
[1758622440030,3.3405515,218.64,218.62,6.72]
[1758622440230,7.6,218.65,218.62,6.72]
[1758622440432,3.3404855,218.64,218.61,1.9146258]
[1758622440631,7.6,218.65,218.62,6.72]
[1758622440834,3.3403964,218.64,218.62,6.72]
[1758622441027,12.58,218.66,218.62,6.72]
[1758622441325,7.39,218.64,218.62,6.72]
[1758622442033,12.58,218.66,218.61,1.9146258]
[1758622442228,12.58,218.66,218.62,6.72]
[1758622442428,12.58,218.66,218.61,1.9146258]
[1758622442625,12.58,218.66,218.63,1.9146258]
[1758622442820,12.58,218.66,218.64,6.72]
[1758622444729,7.39,218.64,218.61,1.9146258]
[1758622445130,19.97,218.66,218.61,1.9146258]
[1758622445325,7.39,218.65,218.62,6.72]
[1758622446032,7.39,218.64,218.62,6.72]
[1758622449338,19.97,218.66,218.6,12.7489258]
[1758622449537,19.97,218.66,218.6,10.8343]
[1758622449744,19.97,218.66,218.6,12.7489258]
[1758622451534,12.58,218.66,218.61,6.72]
[1758622451740,12.58,218.66,218.63,6.72]
[1758622452240,12.58,218.66,218.62,1.9146258]
[1758622452438,12.58,218.66,218.63,6.72]
[1758622452639,12.58,218.66,218.62,1.9146258]
[1758622452939,12.58,218.66,218.63,4.1138]
[1758622453143,12.58,218.66,218.64,6.72]
[1758622454337,7.39,218.65,218.62,6.72]
[1758622455040,7.39,218.65,218.62,10.834]
[1758622455239,7.39,218.65,218.63,6.72]
[1758622458641,7.39,218.65,218.63,10.8338]
[1758622458840,19.61,218.66,218.63,10.8338]
[1758622462546,7.03,218.65,218.63,10.8338]
[1758622468350,7.03,218.67,218.64,10.8336]
[1758622468651,7.03,218.67,218.65,6.72]
[1758622470352,7.03,218.66,218.64,10.8336]
[1758622473456,7.1,218.67,218.65,6.72]
[1758622474456,11.19,218.68,218.65,6.72]
[1758622474756,7.1,218.67,218.64,10.8336]
[1758622477654,11.19,218.68,218.65,1.9146258]
[1758622477856,11.19,218.68,218.67,8.6346258]
[1758622484566,11.19,218.68,218.67,6.72]
[1758622484865,7.1,218.67,218.66,116.4332]
[1758622486565,11.19,218.68,218.66,123.1532]
[1758622486861,11.19,218.68,218.67,6.72]
[1758622491868,11.19,218.68,218.66,116.4332]
[1758622492064,7.1,218.67,218.66,116.4332]
[1758622492566,11.19,218.68,218.66,116.4332]
[1758622492770,18.29,218.68,218.66,116.4332]
[1758622492970,18.29,218.68,218.66,123.1532]
[1758622494263,11.19,218.68,218.66,123.1532]
[1758622494468,11.19,218.68,218.67,6.72]
[1758622494770,7.1,218.75,218.68,63.9788]
[1758622494973,7.1,218.75,218.7,6.72]
[1758622495468,7.1,218.75,218.69,112.1]
[1758622495870,7.1,218.75,218.73,4.1119]
[1758622496075,7.1,218.75,218.73,123.0119]
[1758622496272,4.11,218.84,218.75,4.1117]
[1758622496577,7.1,218.83,218.75,4.1117]
[1758622497373,7.1,218.81,218.75,4.1117]
[1758622500080,7.1,218.81,218.74,6.72]
[1758622500474,7.1,218.81,218.74,10.56008566]
[1758622500671,7.1,218.81,218.74,14.67188566]
[1758622500877,7.1,218.81,218.74,10.56008566]
[1758622501375,18.07,218.82,218.75,6.7]
[1758622501575,18.07,218.82,218.75,10.54008566]
[1758622502680,18.07,218.82,218.77,4.1113]
[1758622502875,11.04,218.82,218.77,4.1113]
[1758622503076,11.04,218.82,218.78,6.7]
[1758622503374,11.04,218.82,218.77,10.8113]
[1758622503676,7.03,218.8,218.77,10.8113]
[1758622504270,7.03,218.81,218.74,7.95188566]
[1758622504474,7.03,218.81,218.73,6.7]
[1758622504682,7.03,218.81,218.74,95.52]
[1758622506072,11.04,218.82,218.74,95.52]
[1758622506279,7.03,218.81,218.74,95.52]
[1758622506970,7.03,218.81,218.75,6.7]
[1758622507279,7.03,218.81,218.74,95.52]
[1758622507481,7.03,218.81,218.73,4.112]
[1758622507673,7.03,218.81,218.73,116.132]
[1758622507877,11.04,218.82,218.73,116.132]
[1758622508073,7.03,218.81,218.73,116.132]
[1758622508277,11.04,218.82,218.73,116.132]
[1758622508683,7.03,218.81,218.73,4.112]
[1758622514281,7.03,218.81,218.74,6.7]
[1758622515683,7.03,218.81,218.75,4.1116]
[1758622515887,7.03,218.81,218.76,6.7]
[1758622516683,10.83696946,218.82,218.79,6.7]
[1758622516888,10.83696946,218.82,218.81,6.7]
[1758622518980,3.65549293,218.82,218.81,6.7]
[1758622519886,9.293e-05,218.82,218.81,6.7]
[1758622520084,9.293e-05,218.82,218.81,10.60167846]
[1758622520885,7.03,218.88,218.83,4.1102]
[1758622521084,7.03,218.88,218.84,10.60167846]
[1758622521288,7.75,218.95,218.85,3.90167846]
[1758622521490,7.75,218.95,218.86,3.90167846]
[1758622521701,7.75,218.95,218.87,3.90167846]
[1758622521897,7.75,218.95,218.88,3.90167846]
[1758622522100,7.75,218.95,218.89,3.90167846]
[1758622522291,7.75,218.95,218.9,3.90167846]
[1758622522492,7.75,218.95,218.91,3.90167846]
[1758622522698,7.75,218.95,218.92,3.90167846]
[1758622522898,7.75,218.95,218.93,3.90167846]
[1758622523095,7.75,218.95,218.84,6.7]
[1758622524598,0.69,218.94,218.84,6.7]
[1758622524790,7.75,218.93,218.84,6.7]
[1758622527498,7.75,218.93,218.85,4.1097]
[1758622527703,7.75,218.93,218.86,7.46]
[1758622529801,7.75,218.93,218.87,4.1094]
[1758622530003,0.69,218.94,218.88,7.46]
[1758622530905,0.69,218.94,218.89,4.109]
[1758622531099,0.69,218.94,218.9,7.31]
[1758622531299,0.69,218.94,218.87,82.58]
[1758622531300,8.23,218.94,218.88,7.31]
[1758622539312,8.23,218.94,218.86,4.1096]
[1758622539712,8.23,218.94,218.85,71.5]
[1758622539918,7.54,218.93,218.85,71.5]
[1758622540512,7.54,218.93,218.86,7.31]
[1758622541704,7.54,218.93,218.86,11.4194]
[1758622544015,0.69,218.94,218.86,11.4194]
[1758622544216,7.54,218.93,218.86,7.31]
[1758622546606,1.9098855,218.92,218.83,11.15008566]
[1758622546815,7.54,218.91,218.83,7.31]
[1758622547417,7.54,218.89,218.83,7.31]
[1758622549817,7.54,218.89,218.83,11.42]
[1758622551718,9.4498855,218.93,218.84,11.4198]
[1758622551925,7.54,218.92,218.84,11.4198]
[1758622553024,7.54,218.92,218.85,7.31]
[1758622553219,7.54,218.92,218.85,6.0194855]
[1758622553424,7.54,218.92,218.86,7.31]
[1758622554827,7.54,218.92,218.86,11.4195]
[1758622555526,7.54,218.92,218.87,4.1093]
[1758622555729,0.69,218.94,218.87,7.94938566]
[1758622555919,0.69,218.94,218.88,7.31]
[1758622558121,8.23,218.94,218.87,15.25938566]
[1758622558728,8.23,218.94,218.88,4.1091]
[1758622559331,8.23,218.94,218.88,7.94918566]
[1758622559733,8.23,218.94,218.9,4.1089]
[1758622559929,8.23,218.94,218.91,7.31]
[1758622560133,8.23,218.94,218.9,4.1089]
[1758622560433,8.23,218.94,218.91,7.31]
[1758622560830,8.23,218.94,218.92,4.1085]
[1758622560831,0.69,218.94,218.92,4.1085]
[1758622561034,0.69,218.94,218.93,12.95865037]
[1758622561635,7.7,218.98,218.93,5.74865037]
[1758622561831,7.7,218.98,218.94,7.21]
[1758622562033,7.7,218.98,218.93,5.74865037]
[1758622562534,7.7,218.98,218.94,7.21]
[1758622562926,7.7,218.98,218.93,5.74865037]
[1758622563131,7.7,219.03,218.96,1.9098855]
[1758622563332,7.7,219.06,218.98,1.9098855]
[1758622563638,9.6098855,219.06,218.97,7.21]
[1758622565036,7.7,219.05,218.97,11.04876487]
[1758622565233,7.7,219.05,218.97,7.21]
[1758622565637,7.7,219.03,218.97,7.21]
[1758622568035,0.67,219.04,219.02,7.21]
[1758622568441,0.67,219.04,219.01,7.21]
[1758622568635,8.37,219.04,219.01,7.21]
[1758622571338,7.7,219.03,218.99,9.1198855]
[1758622572433,0.67,219.04,219.0,7.21]
[1758622573041,0.67,219.04,218.99,1.9098855]
[1758622573229,0.67,219.04,219.0,7.21]
[1758622573541,0.67,219.04,218.99,1.9098855]
[1758622574341,0.67,219.04,219.0,7.21]
[1758622574542,0.67,219.04,218.99,1.9098855]
[1758622575238,0.67,219.04,219.01,1.9098855]
[1758622576143,0.67,219.04,219.01,9.1198855]
[1758622577345,7.93,219.04,219.01,7.21]
[1758622577941,7.26,219.03,219.01,7.21]
[1758622580742,7.93,219.04,219.01,7.21]
[1758622581143,7.93,219.04,219.01,7.5]
[1758622581343,7.93,219.04,219.0,1.9098855]
[1758622581545,0.67,219.04,219.0,1.9098855]
[1758622581744,0.67,219.04,219.01,7.5]
[1758622582635,0.67,219.04,219.0,1.9098855]
[1758622582945,0.67,219.04,219.01,7.5]
[1758622583639,0.67,219.04,219.0,6.0168855]
[1758622584450,0.67,219.04,219.01,7.5]
[1758622585445,0.67,219.04,219.0,6.0168855]
[1758622585947,0.67,219.04,219.01,7.5]
[1758622586148,0.67,219.04,219.0,6.0168855]
[1758622586647,0.67,219.04,219.01,7.5]
[1758622586848,0.67,219.04,219.0,6.0168855]
[1758622587050,0.67,219.04,219.01,7.5]
[1758622587349,7.93,219.04,219.01,7.5]
[1758622587748,0.67,219.04,218.96,5.74865037]
[1758622588047,2.5798855,219.04,218.96,32.46]
[1758622588247,6.6861855,219.04,218.96,32.46]
[1758622588446,7.26,219.03,218.96,32.46]
[1758622588641,1.9098855,219.01,218.92,9.4098855]
[1758622588842,1.9098855,219.01,218.93,45.42]
[1758622588843,7.26,219.0,218.93,45.42]
[1758622597857,7.26,219.0,218.94,7.33]
[1758622604358,7.26,219.0,218.94,11.16876487]
[1758622605961,7.68,219.0,218.94,11.16876487]
[1758622606160,1.9098855,219.01,218.94,11.16876487]
[1758622606761,7.68,219.0,218.94,11.16876487]
[1758622607363,7.68,218.96,218.91,3.83876487]
[1758622607655,1.9098855,218.95,218.91,3.83876487]
[1758622607853,7.68,218.94,218.91,3.83876487]
[1758622608052,7.68,218.94,218.9,3.83876487]
[1758622608256,7.68,218.94,218.89,11.16876487]
[1758622608655,7.68,218.97,218.89,11.16876487]
[1758622608863,2.9834899,218.98,218.89,11.16876487]
[1758622609262,7.68,218.97,218.89,11.16876487]
[1758622609460,7.68,218.97,218.89,7.33]
[1758622609761,11.7877,218.97,218.89,7.33]
[1758622612159,4.1079,218.96,218.89,7.33]
[1758622612356,7.68,218.95,218.89,7.33]
[1758622614465,4.1082,218.94,218.89,7.33]
[1758622615268,7.68,218.93,218.89,7.33]
[1758622615562,7.68,218.93,218.87,3.83876487]
[1758622615967,11.7885,218.92,218.86,7.33]
[1758622616266,11.7885,218.92,218.84,3.83876487]
[1758622616969,4.1089,218.9,218.83,11.16876487]
[1758622617169,7.68,218.89,218.83,11.16876487]
[1758622617864,7.68,218.87,218.82,3.83876487]
[1758622618269,7.68,218.87,218.81,11.16876487]
[1758622623771,7.39,218.91,218.82,6.96]
[1758622623966,7.39,218.97,218.84,6.96]
[1758622624167,7.39,218.97,218.85,6.96]
[1758622625877,11.4977,218.97,218.87,6.96]
[1758622628980,7.39,218.94,218.87,6.96]
[1758622629474,2.9834899,218.95,218.82,82.40721812]
[1758622629771,7.39,218.89,218.82,71.62]
[1758622629975,2.9834899,218.92,218.82,71.62]
[1758622630181,7.39,218.91,218.82,71.62]
[1758622630373,7.39,218.87,218.81,3.82721812]
[1758622630580,7.39,218.87,218.8,3.82721812]
[1758622633281,7.39,218.87,218.81,4.1105]
[1758622633469,7.39,218.87,218.82,6.96]
[1758622633670,7.39,218.87,218.81,4.1105]
[1758622633875,7.39,218.87,218.82,6.96]
[1758622634072,7.39,218.87,218.81,4.1105]
[1758622634272,7.39,218.87,218.82,6.96]
[1758622634580,7.39,218.87,218.81,6.96]
[1758622634782,7.39,218.87,218.79,3.82721812]
[1758622634979,7.39,218.87,218.78,3.82721812]
[1758622635181,11.4994,218.87,218.79,3.82721812]
[1758622635479,11.4994,218.87,218.77,345.28]
[1758622635480,11.4994,218.87,218.78,3.82721812]
[1758622635679,7.39,218.86,218.78,10.78721812]
[1758622637696,7.39,218.86,218.79,7.21]
[1758622638096,7.64,218.89,218.8,7.21]
[1758622638392,7.64,218.89,218.81,7.21]
[1758622639994,7.64,218.87,218.81,7.21]
[1758622640994,7.64,218.87,218.79,3.82721812]
[1758622640995,7.64,218.87,218.79,11.03721812]
[1758622641190,7.64,218.87,218.8,3.82721812]
[1758622645004,7.64,218.87,218.8,7.93791812]
[1758622645303,7.64,218.87,218.81,7.21]
[1758622646098,7.64,218.9,218.81,11.03721812]
[1758622646298,7.64,218.9,218.82,7.21]
[1758622647201,7.64,218.9,218.82,11.03721812]
[1758622647800,7.64,218.9,218.82,3.82721812]
[1758622648106,7.64,218.88,218.81,3.82721812]
[1758622649003,7.64,218.88,218.81,7.93771812]
[1758622649203,7.64,218.88,218.82,11.03721812]
[1758622650904,7.11,218.92,218.83,7.38]
[1758622651200,7.11,218.92,218.83,11.20721812]
[1758622651404,7.11,218.92,218.84,11.20721812]
[1758622652304,7.11,218.92,218.85,3.82721812]
[1758622653998,7.11,218.92,218.84,3.82721812]
[1758622654201,4.1089,218.91,218.85,3.82721812]
[1758622654402,7.11,218.9,218.84,3.82721812]
[1758622654810,7.11,218.9,218.83,3.82721812]
[1758622655309,7.11,218.9,218.84,3.82721812]
[1758622655508,11.219,218.9,218.83,3.82721812]
[1758622655810,7.11,218.9,218.83,3.82721812]
[1758622656411,7.11,218.9,218.79,7.38]
[1758622656812,11.2189,218.9,218.8,4.1107]
[1758622657112,7.11,218.88,218.8,4.1107]
[1758622659107,1.14192062,218.87,218.8,4.1107]
[1758622659409,1.14192062,218.86,218.8,4.1107]
[1758622659610,7.11,218.89,218.81,7.38]
[1758622659809,1.14190548,218.88,218.81,10.3634899]
[1758622660116,1.14190548,218.87,218.81,2.9834899]
[1758622660309,7.11,218.93,218.82,7.38]
[1758622660509,1.14183726,218.92,218.82,7.38]
[1758622660709,1.14183726,218.91,218.82,7.38]
[1758622660909,1.14183726,218.9,218.84,11.4898]
[1758622661113,1.14183726,218.89,218.85,7.38]
[1758622661313,1.14183726,218.88,218.84,4.1098]
[1758622661609,7.11,218.93,218.85,7.38]
[1758622661809,1.1418371,218.92,218.85,7.38]
[1758622662110,1.1418371,218.91,218.85,7.38]
[1758622662310,8.2518371,218.9,218.84,4.1098]
[1758622662508,1.1418371,218.89,218.84,4.1098]
[1758622662711,1.1418371,218.88,218.84,4.1098]
[1758622662910,7.11,218.9,218.85,7.38]
[1758622663111,8.2518371,218.89,218.85,7.38]
[1758622663310,1.1418371,218.88,218.84,4.1098]
[1758622663603,7.11,218.91,218.8,9.22968338]
[1758622663817,7.11,218.89,218.8,16.60968338]
[1758622664110,1.1418371,218.88,218.8,11.4907]
[1758622664912,7.11,218.87,218.8,7.38]
[1758622665515,1.14192801,218.86,218.8,7.38]
[1758622665816,7.11,218.87,218.8,7.38]
[1758622666019,1.14192843,218.86,218.8,7.38]
[1758622666318,7.11,218.87,218.8,7.38]
[1758622666513,1.14192843,218.86,218.8,7.38]
[1758622666706,7.11,218.87,218.8,7.38]
[1758622667016,1.14192843,218.86,218.8,7.38]
[1758622667217,7.11,218.87,218.8,7.38]
[1758622667417,1.14192843,218.86,218.8,7.38]
[1758622667618,7.11,218.87,218.8,7.38]
[1758622667817,1.14192843,218.86,218.8,7.38]
[1758622668018,7.11,218.87,218.8,7.38]
[1758622668217,1.14192843,218.86,218.8,7.38]
[1758622668421,7.11,218.92,218.8,7.38]
[1758622668622,1.1419128,218.91,218.82,7.38]
[1758622668824,1.1419128,218.9,218.82,7.38]
[1758622669017,1.1419128,218.89,218.82,7.38]
[1758622669217,1.1419128,218.88,218.82,7.38]
[1758622669523,1.1419128,218.87,218.83,4.1102]
[1758622669722,7.11,218.9,218.83,11.4902]
[1758622669918,1.14191271,218.89,218.83,11.4902]
[1758622670122,1.14191271,218.88,218.84,7.38]
[1758622670323,7.11,218.9,218.83,11.4902]
[1758622670520,1.141845,218.89,218.83,11.4902]
[1758622670722,1.141845,218.88,218.84,7.38]
[1758622670925,7.11,218.9,218.84,7.38]
[1758622671127,1.141845,218.89,218.83,11.4902]
[1758622671421,1.141845,218.88,218.83,4.1102]
[1758622671728,7.11,218.91,218.83,11.4902]
[1758622671918,1.14184491,218.9,218.83,11.4902]
[1758622672120,1.14184491,218.89,218.83,11.4902]
[1758622672320,1.14184491,218.88,218.83,4.1102]
[1758622672621,1.14184491,218.87,218.83,4.1102]
[1758622672822,7.11,218.91,218.83,11.4902]
[1758622673022,1.14184483,218.9,218.83,11.4902]
[1758622673222,1.14184483,218.89,218.83,11.4902]
[1758622673423,1.14184483,218.88,218.83,4.1102]
[1758622673622,1.14184483,218.87,218.84,7.38]
[1758622673819,7.11,218.91,218.83,11.4902]
[1758622674020,1.14184483,218.9,218.83,11.4902]
[1758622674325,1.14184483,218.89,218.83,11.4902]
[1758622674519,8.25184483,218.88,218.84,7.38]
[1758622674719,1.14184483,218.87,218.84,7.38]
[1758622674925,7.11,218.88,218.84,7.38]
[1758622675222,1.14184483,218.87,218.83,4.1102]
[1758622675426,1.14184483,218.86,218.83,4.1102]
[1758622675616,7.11,218.88,218.84,7.38]
[1758622675820,1.14195057,218.87,218.84,7.38]
[1758622676022,1.14195057,218.86,218.83,4.1102]
[1758622676223,0.61,218.85,218.84,7.38]
[1758622684129,0.61,218.85,218.84,11.49]
[1758622684435,0.61,218.85,218.84,13.40008304]
[1758622685131,0.61,218.85,218.84,9.29008304]
[1758622686034,0.61,218.85,218.81,1.91008304]
[1758622686830,0.61,218.85,218.82,7.71]
[1758622687129,0.61,218.85,218.81,1.91008304]
[1758622687626,0.61,218.85,218.82,7.71]
[1758622689135,0.61,218.85,218.81,1.91008304]
[1758622689736,0.61,218.85,218.82,7.71]
[1758622689936,0.61,218.85,218.81,1.91008304]
[1758622689937,10.50616459,218.84,218.81,1.91008304]
[1758622690131,7.3,218.84,218.79,7.71]
[1758622690334,7.3,218.84,218.78,7.71]
[1758622690534,7.3,218.82,218.74,7.71]
[1758622690834,7.3,218.8,218.74,7.71]
[1758622691035,3.20322743,218.79,218.72,7.71]
[1758622691234,1.14233735,218.78,218.72,7.71]
[1758622691438,1.14233735,218.77,218.75,7.71]
[1758622691637,1.14233735,218.76,218.75,7.71]
[1758622691838,1.14233735,218.83,218.75,7.71]
[1758622692028,4.36746486,218.82,218.75,7.71]
[1758622692232,3.22512751,218.81,218.75,7.71]
[1758622692433,3.22512751,218.8,218.74,7.71]
[1758622692632,7.3,218.84,218.74,7.71]
[1758622692837,4.36572692,218.83,218.75,1.91008304]
[1758622693037,4.36572692,218.82,218.75,1.91008304]
[1758622693336,3.22339453,218.81,218.75,1.91008304]
[1758622693536,7.3,218.84,218.75,1.91008304]
[1758622693737,7.3,218.82,218.75,1.91008304]
[1758622693941,3.22184817,218.81,218.75,1.91008304]
[1758622694145,7.3,218.82,218.75,1.91008304]
[1758622694346,3.20629666,218.81,218.75,1.91008304]
[1758622694540,9.21008304,218.82,218.74,7.71]
[1758622694745,7.3,218.8,218.74,7.71]
[1758622697848,7.3,218.8,218.7,7.61]
[1758622697849,7.56,218.78,218.7,7.61]
[1758622698150,9.47008304,218.76,218.7,7.61]
[1758622702643,7.56,218.8,218.7,7.61]
[1758622702848,1.91008304,218.78,218.7,7.61]
[1758622703255,7.56,218.77,218.7,7.61]
[1758622703650,1.91008304,218.75,218.7,7.61]
[1758622703858,9.47008304,218.75,218.7,7.61]
[1758622704056,9.47008304,218.75,218.68,7.61]
[1758622704654,1.91008304,218.73,218.68,7.61]
[1758622704958,7.56,218.72,218.68,7.61]
[1758622705260,7.56,218.72,218.65,7.61]
[1758622708457,9.47008304,218.66,218.58,7.61]
[1758622709661,7.56,218.71,218.6,7.61]
[1758622709850,7.56,218.71,218.63,7.61]
[1758622714766,9.47008304,218.71,218.63,7.61]
[1758622718367,7.56,218.71,218.64,7.19]
[1758622719466,1.91008304,218.73,218.65,9.10008304]
[1758622720666,7.38,218.72,218.65,7.19]
[1758622722666,1.91008304,218.71,218.61,13.21428304]
[1758622722967,7.38,218.68,218.61,7.19]
[1758622724064,9.29008304,218.71,218.62,7.19]
[1758622724463,9.29008304,218.71,218.61,6.02428304]
[1758622724464,7.38,218.71,218.64,7.19]
[1758622728872,9.29008304,218.71,218.64,7.19]
[1758622729176,9.29008304,218.71,218.6,9.10008304]
[1758622729874,13.40268304,218.71,218.6,9.10008304]
[1758622730675,11.4926,218.71,218.6,7.19]
[1758622738576,4.1128,218.69,218.6,7.19]
[1758622738777,7.38,218.68,218.6,7.19]
[1758622740979,11.4932,218.68,218.6,7.19]
[1758622742280,3.21691211,218.67,218.56,7.15]
[1758622742479,10.50691211,218.66,218.56,7.15]
[1758622742674,7.29,218.64,218.56,7.15]
[1758622743784,11.4038,218.64,218.56,7.15]
[1758622744987,7.29,218.62,218.56,7.15]
[1758622748588,7.29,218.62,218.51,7.15]
[1758622749783,4.1145,218.6,218.51,7.15]
[1758622749974,63.9931,218.64,218.51,7.15]
[1758622749975,7.29,218.59,218.51,7.15]
[1758622750886,11.4051,218.57,218.51,7.15]
[1758622751481,7.29,218.57,218.51,7.15]
[1758622751786,7.29,218.6,218.46,7.15]
[1758622752375,4.1153,218.56,218.46,7.15]
[1758622752590,7.29,218.55,218.46,7.15]
[1758622753082,7.29,218.53,218.46,7.15]
[1758622762987,7.29,218.53,218.42,7.37]
[1758622762988,7.19,218.5,218.42,7.37]
[1758622764185,4.1166,218.49,218.42,7.37]
[1758622764887,7.19,218.48,218.42,7.37]
[1758622769392,11.306,218.53,218.42,7.37]
[1758622770295,11.306,218.53,218.45,7.37]
[1758622771496,7.18,218.56,218.47,7.06]
[1758622774097,7.18,218.54,218.47,7.06]
[1758622777197,11.2958,218.54,218.47,7.06]
[1758622778695,7.18,218.54,218.47,7.06]
[1758622783798,7.18,218.54,218.48,4.1168]
[1758622784596,7.18,218.54,218.47,7.06]
[1758622786300,7.18,218.54,218.48,4.1167]
[1758622790101,7.18,218.54,218.47,7.06]
[1758622793201,7.18,218.54,218.47,11.1768]
[1758622795410,3.22806355,218.53,218.47,11.1768]
[1758622795612,7.18,218.54,218.47,11.1768]
[1758622795808,3.22812972,218.53,218.47,11.1768]
[1758622796108,7.18,218.54,218.47,11.1768]
[1758622796304,3.22812469,218.53,218.47,11.1768]
[1758622796609,7.18,218.54,218.47,11.1768]
[1758622796808,3.22934982,218.53,218.47,11.1768]
[1758622797008,7.18,218.54,218.47,11.1768]
[1758622797207,3.22935781,218.53,218.47,11.1768]
[1758622797410,7.18,218.54,218.47,11.1768]
[1758622797707,3.23026528,218.53,218.47,11.1768]
[1758622797910,7.18,218.54,218.47,11.1768]
[1758622798108,3.23032709,218.53,218.47,11.1768]
[1758622798308,7.18,218.54,218.47,11.1768]
[1758622798507,3.2305652,218.53,218.47,11.1768]
[1758622798708,7.18,218.54,218.47,11.1768]
[1758622798909,3.23155743,218.53,218.47,11.1768]
[1758622799109,7.18,218.54,218.47,11.1768]
[1758622799413,3.23155807,218.53,218.47,11.1768]
[1758622799614,7.18,218.54,218.47,11.1768]
[1758622799918,3.23162874,218.53,218.47,11.1768]
[1758622800118,7.18,218.54,218.47,11.1768]
[1758622800319,3.23266058,218.53,218.47,11.1768]
[1758622800518,3.23266058,218.52,218.47,11.1768]
[1758622800824,7.42,218.54,218.47,11.4968]
[1758622801013,3.23353536,218.53,218.47,11.4968]
[1758622801319,7.42,218.54,218.47,11.4968]
[1758622801618,3.2336195,218.53,218.48,7.38]
[1758622801815,7.42,218.54,218.48,7.38]
[1758622802015,7.42,218.52,218.48,7.38]
[1758622803421,7.42,218.52,218.46,4.117]
[1758622803626,7.42,218.52,218.47,7.38]
[1758622804126,7.42,218.52,218.46,11.497]
[1758622805423,7.42,218.52,218.46,7.38]
[1758622807927,3.23603769,218.51,218.46,7.38]
[1758622808125,7.42,218.51,218.44,7.38]
[1758622809223,3.23676647,218.5,218.44,7.38]
[1758622809522,7.42,218.5,218.44,7.38]
[1758622809728,7.42,218.48,218.4,1.91648026]
[1758622809931,7.42,218.48,218.41,7.38]
[1758622810124,7.42,218.48,218.41,11.498]
[1758622810528,7.42,218.48,218.41,7.38]
[1758622810830,3.23681615,218.47,218.41,7.38]
[1758622811031,7.42,218.48,218.41,7.38]
[1758622811230,3.2362173,218.47,218.41,7.38]
[1758622811429,7.42,218.48,218.41,7.38]
[1758622811630,10.6562173,218.47,218.39,7.38]
[1758622811831,7.42,218.47,218.39,11.4984]
[1758622812232,9.33648026,218.47,218.39,11.4984]
[1758622812429,9.33648026,218.47,218.4,7.38]
[1758622812630,7.42,218.47,218.42,7.38]
[1758622812931,9.33648026,218.51,218.41,7.38]
[1758622813228,3.23564681,218.5,218.44,7.38]
[1758622813433,3.23564681,218.49,218.43,4.1175]
[1758622813629,3.23564681,218.48,218.45,4.1173]
[1758622813836,6.03198026,218.55,218.45,6.03378026]
[1758622814037,11.79915265,218.54,218.46,7.38]
[1758622814234,4.37915265,218.53,218.46,7.38]